[Event "*** Titled Tuesday Blitz"]
[Site "Chess.com"]
[Date "2020.04.28"]
[Round "8"]
[White "eightbyeightchess"]
[Black "Chepaschess"]
[Result "0-1"]
[WhiteElo "2503"]
[BlackElo "2671"]
[TimeControl "180+1"]
[EndTime "11:36:05 PDT"]
[Termination "Chepaschess won by resignation"]

1. e4 {[%clk 0:03:00.9]} 1... c5 {[%clk 0:02:58.9]} 2. Nf3 {[%clk 0:03:00.8]}
2... d6 {[%clk 0:02:58.6]} 3. d4 {[%clk 0:03:01.1]} 3... cxd4 {[%clk 0:02:59.5]}
4. Qxd4 {[%clk 0:03:01.3]} 4... Nc6 {[%clk 0:02:58]} 5. Bb5 {[%clk 0:03:00.6]}
5... a6 {[%clk 0:02:58.5]} 6. Bxc6+ {[%clk 0:02:59.8]} 6... bxc6 {[%clk
0:02:59.4]} 7. Nc3 {[%clk 0:02:59.6]} 7... e5 {[%clk 0:02:55.4]} 8. Qd3 {[%clk
0:02:56.2]} 8... Ne7 {[%clk 0:02:49.3]} 9. Bg5 {[%clk 0:02:53.5]} 9... f6 {[%clk
0:02:48.6]} 10. Be3 {[%clk 0:02:52.6]} 10... Be6 {[%clk 0:02:44.2]} 11. O-O
{[%clk 0:02:50.1]} 11... d5 {[%clk 0:02:42.3]} 12. Bc5 {[%clk 0:02:37.5]} 12...
Ng6 {[%clk 0:02:32.5]} 13. Bxf8 {[%clk 0:02:33.7]} 13... Rxf8 {[%clk 0:02:33.4]}
14. g3 {[%clk 0:02:29.2]} 14... Qd6 {[%clk 0:02:19.1]} 15. Rad1 {[%clk 0:02:12]}
15... d4 {[%clk 0:02:18.3]} 16. Ne2 {[%clk 0:01:57.3]} 16... c5 {[%clk
0:02:16.7]} 17. Qa3 {[%clk 0:01:52]} 17... Rd8 {[%clk 0:02:05.3]} 18. Nc3 {[%clk
0:01:34.4]} 18... c4 {[%clk 0:01:58.2]} 19. Qa4+ {[%clk 0:01:17.5]} 19... Kf7
{[%clk 0:01:53.6]} 20. Nb1 {[%clk 0:01:15.3]} 20... Kg8 {[%clk 0:01:48.6]} 21.
Nbd2 {[%clk 0:01:11.9]} 21... Rc8 {[%clk 0:01:43.8]} 22. Kg2 {[%clk 0:01:03.1]}
22... Rfd8 {[%clk 0:01:40.1]} 23. Ng1 {[%clk 0:01:02.8]} 23... Bd7 {[%clk
0:01:36.7]} 24. Qa5 {[%clk 0:00:51.7]} 24... Qc5 {[%clk 0:01:27.9]} 25. Qxa6
{[%clk 0:00:42.7]} 25... Rc6 {[%clk 0:01:27.8]} 26. Qa3 {[%clk 0:00:33.1]} 26...
Qxa3 {[%clk 0:01:26.5]} 27. bxa3 {[%clk 0:00:34]} 27... Ra8 {[%clk 0:01:26.7]}
28. Rb1 {[%clk 0:00:31.8]} 28... Rxa3 {[%clk 0:01:23]} 29. Rb8+ {[%clk
0:00:28.2]} 29... Kf7 {[%clk 0:01:17]} 30. Rfb1 {[%clk 0:00:24.7]} 30... Rxa2
{[%clk 0:01:16.5]} 31. R1b7 {[%clk 0:00:23.5]} 31... Nf8 {[%clk 0:01:11.8]} 32.
Rxf8+ {[%clk 0:00:19.9]} 32... Kxf8 {[%clk 0:01:12.7]} 33. Rxd7 {[%clk
0:00:20.3]} 33... Rxc2 {[%clk 0:01:13.1]} 34. Ngf3 {[%clk 0:00:20.6]} 34... c3
{[%clk 0:01:11.4]} 35. Nb3 {[%clk 0:00:20]} 35... Rb2 {[%clk 0:01:11.7]} 36. Nc1
{[%clk 0:00:13.5]} 36... c2 {[%clk 0:01:10.3]} 37. Ne1 {[%clk 0:00:13.6]} 37...
Rb1 {[%clk 0:01:05.3]} 38. Ned3 {[%clk 0:00:13.6]} 38... Rc3 {[%clk 0:01:04.4]}
39. f4 {[%clk 0:00:11.3]} 39... Rxd3 {[%clk 0:01:03.1]} 40. Nxd3 {[%clk
0:00:12.2]} 40... Rd1 {[%clk 0:01:03.3]} 41. Rc7 {[%clk 0:00:09.1]} 41... Rxd3
{[%clk 0:01:02.4]} 42. Rxc2 {[%clk 0:00:08.7]} 42... Re3 {[%clk 0:01:02.6]} 43.
fxe5 {[%clk 0:00:07.4]} 43... fxe5 {[%clk 0:01:02.6]} 44. Rc7 {[%clk 0:00:06.5]}
44... Rxe4 {[%clk 0:01:02.4]} 45. Kf2 {[%clk 0:00:07.4]} 45... h5 {[%clk
0:00:59.7]} 46. Kf3 {[%clk 0:00:08.3]} 46... Re3+ {[%clk 0:00:59.6]} 47. Kf2
{[%clk 0:00:08.9]} 47... Rc3 {[%clk 0:00:59]} 48. Rd7 {[%clk 0:00:08.6]} 48...
Rc2+ {[%clk 0:00:53.5]} 49. Kf3 {[%clk 0:00:08.9]} 49... Rxh2 {[%clk 0:00:53.6]}
50. Ke4 {[%clk 0:00:09]} 50... Re2+ {[%clk 0:00:53.4]} 51. Kf5 {[%clk
0:00:09.1]} 51... Re3 {[%clk 0:00:52.4]} 52. g4 {[%clk 0:00:08.1]} 52... hxg4
{[%clk 0:00:51.4]} 53. Kg6 {[%clk 0:00:08.5]} 53... Ke8 {[%clk 0:00:51.1]} 54.
Rxg7 {[%clk 0:00:08]} 54... d3 {[%clk 0:00:51.1]} 55. Kf6 {[%clk 0:00:08.4]}
55... d2 {[%clk 0:00:50.2]} 56. Ke6 {[%clk 0:00:08.4]} 56... Kf8 {[%clk
0:00:47.5]} 57. Rf7+ {[%clk 0:00:07.9]} 57... Kg8 {[%clk 0:00:47.5]} 58. Rd7
{[%clk 0:00:08.8]} 58... Re2 {[%clk 0:00:45]} 59. Kf6 {[%clk 0:00:09]} 59... g3
{[%clk 0:00:43.5]} 60. Kg6 {[%clk 0:00:08.5]} 60... Kf8 {[%clk 0:00:43.1]} 61.
Kf6 {[%clk 0:00:08.3]} 61... Rf2+ {[%clk 0:00:41.7]} 62. Kxe5 {[%clk 0:00:08]}
62... g2 {[%clk 0:00:42]} 0-1

[Event "*** Titled Tuesday Blitz"]
[Site "Chess.com"]
[Date "2020.04.28"]
[Round "8"]
[White "albi1999"]
[Black "RubensCezila"]
[Result "1-0"]
[WhiteElo "2641"]
[BlackElo "2465"]
[TimeControl "180+1"]
[EndTime "11:36:06 PDT"]
[Termination "albi1999 won by resignation"]

1. d4 {[%clk 0:03:00.9]} 1... Nf6 {[%clk 0:02:59.4]} 2. c4 {[%clk 0:03:01]} 2...
e6 {[%clk 0:02:59.9]} 3. Nf3 {[%clk 0:03:01.1]} 3... b6 {[%clk 0:02:59.9]} 4. g3
{[%clk 0:03:01.1]} 4... Ba6 {[%clk 0:03:00.1]} 5. b3 {[%clk 0:02:59.7]} 5... Bb7
{[%clk 0:02:59.9]} 6. Bg2 {[%clk 0:02:58.1]} 6... Bb4+ {[%clk 0:03:00.2]} 7. Bd2
{[%clk 0:02:57.2]} 7... a5 {[%clk 0:03:00.7]} 8. O-O {[%clk 0:02:56.3]} 8... O-O
{[%clk 0:03:00.4]} 9. Bf4 {[%clk 0:02:33.7]} 9... Ne4 {[%clk 0:02:43.7]} 10. Qc2
{[%clk 0:02:20]} 10... f5 {[%clk 0:02:31.2]} 11. c5 {[%clk 0:02:11.3]} 11... a4
{[%clk 0:02:23]} 12. cxb6 {[%clk 0:02:05.5]} 12... cxb6 {[%clk 0:02:15.5]} 13.
a3 {[%clk 0:01:52.3]} 13... axb3 {[%clk 0:02:04.6]} 14. Qxb3 {[%clk 0:01:48]}
14... Qe7 {[%clk 0:02:03.5]} 15. Ra2 {[%clk 0:01:40.8]} 15... Bd5 {[%clk
0:01:57]} 16. Qb2 {[%clk 0:01:23.4]} 16... Bxa2 {[%clk 0:01:50.8]} 17. Qxa2
{[%clk 0:01:22]} 17... Bxa3 {[%clk 0:01:32]} 18. Nfd2 {[%clk 0:01:15.5]} 18...
d5 {[%clk 0:01:27.8]} 19. Nxe4 {[%clk 0:00:46.1]} 19... fxe4 {[%clk 0:01:10.9]}
20. f3 {[%clk 0:00:34.7]} 20... exf3 {[%clk 0:00:56]} 21. Bxf3 {[%clk
0:00:35.6]} 21... Nd7 {[%clk 0:00:42.6]} 22. e4 {[%clk 0:00:35.2]} 22... Bd6
{[%clk 0:00:34]} 23. Bxd6 {[%clk 0:00:25.1]} 23... Qxd6 {[%clk 0:00:32.7]} 24.
Qd2 {[%clk 0:00:23.3]} 24... dxe4 {[%clk 0:00:27.9]} 25. Bxe4 {[%clk 0:00:24.2]}
25... Rxf1+ {[%clk 0:00:27.7]} 26. Kxf1 {[%clk 0:00:25.1]} 26... Rf8+ {[%clk
0:00:25.5]} 27. Kg2 {[%clk 0:00:24.8]} 27... Nf6 {[%clk 0:00:25.6]} 28. Bf3
{[%clk 0:00:24.5]} 28... Rd8 {[%clk 0:00:25.2]} 29. Qe2 {[%clk 0:00:24.5]} 29...
Kf7 {[%clk 0:00:18]} 30. Nd2 {[%clk 0:00:21.1]} 30... Qxd4 {[%clk 0:00:17.8]}
31. Nc4 {[%clk 0:00:21.6]} 31... Nd5 {[%clk 0:00:09.5]} 32. Ne5+ {[%clk
0:00:21.2]} 32... Kg8 {[%clk 0:00:09.8]} 33. Nc6 {[%clk 0:00:21.4]} 33... Ne3+
{[%clk 0:00:08.8]} 34. Kh3 {[%clk 0:00:20.4]} 34... Qc5 {[%clk 0:00:04.6]} 35.
Nxd8 {[%clk 0:00:20.5]} 35... Qf5+ {[%clk 0:00:04.6]} 36. g4 {[%clk 0:00:20.9]}
36... Qg5 {[%clk 0:00:04.2]} 37. Nxe6 {[%clk 0:00:18.1]} 37... Qh6+ {[%clk
0:00:04.5]} 38. Kg3 {[%clk 0:00:18.4]} 38... Qxe6 {[%clk 0:00:04.5]} 39. Kf2
{[%clk 0:00:17.6]} 39... Qe5 {[%clk 0:00:02.8]} 40. Qxe3 {[%clk 0:00:16.4]}
40... Qxh2+ {[%clk 0:00:03.4]} 41. Bg2 {[%clk 0:00:16.9]} 41... Qh4+ {[%clk
0:00:03.4]} 42. Kf3 {[%clk 0:00:15.7]} 42... Qf6+ {[%clk 0:00:03.6]} 43. Kg3
{[%clk 0:00:15.4]} 43... h6 {[%clk 0:00:03.9]} 44. Bd5+ {[%clk 0:00:15.5]} 44...
Kh8 {[%clk 0:00:04]} 45. Qe8+ {[%clk 0:00:15.2]} 45... Kh7 {[%clk 0:00:04.6]}
46. Bg8+ {[%clk 0:00:15.1]} 46... Kh8 {[%clk 0:00:05.1]} 47. Bf7+ {[%clk
0:00:15.6]} 1-0

[Event "*** Titled Tuesday Blitz"]
[Site "Chess.com"]
[Date "2020.04.28"]
[Round "8"]
[White "Ave_Mariia"]
[Black "Zmeeed63"]
[Result "0-1"]
[WhiteElo "2277"]
[BlackElo "2164"]
[TimeControl "180+1"]
[EndTime "11:36:08 PDT"]
[Termination "Zmeeed63 won on time"]

1. d4 {[%clk 0:03:00.9]} 1... Nf6 {[%clk 0:02:57.6]} 2. c4 {[%clk 0:03:00.7]}
2... e6 {[%clk 0:02:54.7]} 3. g3 {[%clk 0:03:00.2]} 3... c5 {[%clk 0:02:54.2]}
4. d5 {[%clk 0:02:59.2]} 4... exd5 {[%clk 0:02:55.1]} 5. cxd5 {[%clk 0:03:00.1]}
5... d6 {[%clk 0:02:55.8]} 6. Nf3 {[%clk 0:02:57]} 6... g6 {[%clk 0:02:56.1]} 7.
Bg2 {[%clk 0:02:56.6]} 7... Bg7 {[%clk 0:02:56.5]} 8. Nc3 {[%clk 0:02:56.7]}
8... O-O {[%clk 0:02:56.4]} 9. O-O {[%clk 0:02:57]} 9... a6 {[%clk 0:02:50.1]}
10. a4 {[%clk 0:02:55.2]} 10... Re8 {[%clk 0:02:45.3]} 11. Bf4 {[%clk 0:02:53]}
11... Nh5 {[%clk 0:02:44.2]} 12. Bg5 {[%clk 0:02:51.2]} 12... Qc7 {[%clk
0:02:42.8]} 13. Nd2 {[%clk 0:02:37]} 13... Nd7 {[%clk 0:02:41.4]} 14. e4 {[%clk
0:02:26.8]} 14... Ne5 {[%clk 0:02:40.7]} 15. Qc2 {[%clk 0:02:12.8]} 15... h6
{[%clk 0:02:29.5]} 16. Be3 {[%clk 0:02:07.6]} 16... Ng4 {[%clk 0:02:29]} 17. Nc4
{[%clk 0:02:02.8]} 17... Nxe3 {[%clk 0:02:27.6]} 18. Nxe3 {[%clk 0:02:03.7]}
18... Rb8 {[%clk 0:02:22.1]} 19. a5 {[%clk 0:02:01.6]} 19... Bd7 {[%clk
0:02:22]} 20. Nc4 {[%clk 0:01:59.6]} 20... Bb5 {[%clk 0:02:21.5]} 21. Nxb5
{[%clk 0:01:47.5]} 21... axb5 {[%clk 0:02:22.4]} 22. Ne3 {[%clk 0:01:37.4]}
22... c4 {[%clk 0:02:11]} 23. a6 {[%clk 0:01:29.5]} 23... bxa6 {[%clk
0:02:09.7]} 24. Rxa6 {[%clk 0:01:29.7]} 24... Rb6 {[%clk 0:02:10.2]} 25. Rfa1
{[%clk 0:01:24.8]} 25... Rxa6 {[%clk 0:01:55.8]} 26. Rxa6 {[%clk 0:01:25.7]}
26... Qc5 {[%clk 0:01:46.7]} 27. Rc6 {[%clk 0:01:13.4]} 27... Qb4 {[%clk
0:01:46.3]} 28. Nd1 {[%clk 0:01:12.3]} 28... Qe1+ {[%clk 0:01:19.1]} 29. Bf1
{[%clk 0:01:12.1]} 29... Rxe4 {[%clk 0:01:18.3]} 30. Rxd6 {[%clk 0:01:02.3]}
30... Rd4 {[%clk 0:01:15.8]} 31. Ne3 {[%clk 0:01:00.7]} 31... Rd2 {[%clk
0:01:12.7]} 32. Rd8+ {[%clk 0:00:52.5]} 32... Kh7 {[%clk 0:01:11]} 33. Qxd2
{[%clk 0:00:17.1]} 33... Qxd2 {[%clk 0:01:10.4]} 34. d6 {[%clk 0:00:17.7]} 34...
Bf6 {[%clk 0:01:02.5]} 35. Rd7 {[%clk 0:00:17.1]} 35... Kg7 {[%clk 0:00:55.5]}
36. Ng4 {[%clk 0:00:13]} 36... Bg5 {[%clk 0:00:45.9]} 37. Ne5 {[%clk 0:00:12.6]}
37... Qxb2 {[%clk 0:00:36.1]} 38. Nxf7 {[%clk 0:00:12]} 38... Kf8 {[%clk
0:00:32.9]} 39. Nxg5 {[%clk 0:00:08]} 39... hxg5 {[%clk 0:00:33.8]} 40. Rd8+
{[%clk 0:00:05.7]} 40... Kf7 {[%clk 0:00:33.7]} 41. h3 {[%clk 0:00:05]} 41...
Qd4 {[%clk 0:00:31.3]} 42. Bg2 {[%clk 0:00:04.7]} 42... c3 {[%clk 0:00:28.5]}
43. Rd7+ {[%clk 0:00:03.5]} 43... Ke6 {[%clk 0:00:25.3]} 44. Bc6 {[%clk
0:00:01.9]} 44... c2 {[%clk 0:00:20.6]} 0-1

[Event "*** Titled Tuesday Blitz"]
[Site "Chess.com"]
[Date "2020.04.28"]
[Round "8"]
[White "doctorcristian"]
[Black "Skatchkov_V"]
[Result "0-1"]
[WhiteElo "2353"]
[BlackElo "2545"]
[TimeControl "180+1"]
[EndTime "11:36:09 PDT"]
[Termination "Skatchkov_V won by resignation"]

1. d4 {[%clk 0:03:00.9]} 1... Nf6 {[%clk 0:02:59.6]} 2. Nc3 {[%clk 0:03:00.4]}
2... d5 {[%clk 0:02:59]} 3. Bf4 {[%clk 0:03:00.4]} 3... a6 {[%clk 0:02:59.2]} 4.
e3 {[%clk 0:02:59.2]} 4... c5 {[%clk 0:02:59.7]} 5. h3 {[%clk 0:02:58.4]} 5...
Nc6 {[%clk 0:02:58.8]} 6. Nf3 {[%clk 0:02:57.9]} 6... e6 {[%clk 0:02:58.6]} 7.
a3 {[%clk 0:02:54.4]} 7... Be7 {[%clk 0:02:58.6]} 8. Be2 {[%clk 0:02:52.9]} 8...
O-O {[%clk 0:02:56.5]} 9. O-O {[%clk 0:02:50.9]} 9... c4 {[%clk 0:02:56.9]} 10.
Ne5 {[%clk 0:02:27.8]} 10... Nxe5 {[%clk 0:02:54.9]} 11. Bxe5 {[%clk 0:02:26.7]}
11... b5 {[%clk 0:02:54.8]} 12. Bf3 {[%clk 0:02:26.2]} 12... Bb7 {[%clk
0:02:54.9]} 13. Ne2 {[%clk 0:02:23.3]} 13... a5 {[%clk 0:02:52.9]} 14. b3 {[%clk
0:02:21.1]} 14... Rc8 {[%clk 0:02:50.9]} 15. Ra2 {[%clk 0:02:19.4]} 15... Nd7
{[%clk 0:02:44.5]} 16. Bh2 {[%clk 0:02:17.3]} 16... Nb6 {[%clk 0:02:44.8]} 17.
Qd2 {[%clk 0:02:14.9]} 17... b4 {[%clk 0:02:42.1]} 18. a4 {[%clk 0:02:11.8]}
18... Ba6 {[%clk 0:02:36.2]} 19. Rb1 {[%clk 0:02:03.5]} 19... Qd7 {[%clk
0:02:33.9]} 20. Ng3 {[%clk 0:01:50.3]} 20... Bd6 {[%clk 0:02:17]} 21. Nf1 {[%clk
0:01:48.7]} 21... Bxh2+ {[%clk 0:02:12.7]} 22. Kxh2 {[%clk 0:01:47.8]} 22... f5
{[%clk 0:02:12.3]} 23. g3 {[%clk 0:01:46.5]} 23... cxb3 {[%clk 0:02:03.9]} 24.
cxb3 {[%clk 0:01:45]} 24... Rc3 {[%clk 0:02:04.3]} 25. Be2 {[%clk 0:01:41.6]}
25... Qa7 {[%clk 0:01:56.6]} 26. Bxa6 {[%clk 0:01:37.6]} 26... Qxa6 {[%clk
0:01:39.1]} 27. Qe2 {[%clk 0:01:36.7]} 27... Qxe2 {[%clk 0:01:38.5]} 28. Rxe2
{[%clk 0:01:35.2]} 28... Nc8 {[%clk 0:01:39.1]} 29. Nd2 {[%clk 0:01:32.7]} 29...
Nd6 {[%clk 0:01:39.5]} 30. Nf3 {[%clk 0:01:29.5]} 30... Rfc8 {[%clk 0:01:38.6]}
31. Ne5 {[%clk 0:01:28.4]} 31... Ne4 {[%clk 0:01:38.6]} 32. f3 {[%clk 0:01:23]}
32... Rc2 {[%clk 0:01:26.4]} 33. Rb2 {[%clk 0:01:19.6]} 33... Rxb2 {[%clk
0:01:19.8]} 34. Rxb2 {[%clk 0:01:17.5]} 34... Nd6 {[%clk 0:01:20.2]} 35. Kg2
{[%clk 0:01:16.1]} 35... Rc3 {[%clk 0:01:19]} 36. Kf2 {[%clk 0:01:15.6]} 36...
Kf8 {[%clk 0:01:18.2]} 37. h4 {[%clk 0:01:13.8]} 37... Ke7 {[%clk 0:01:17.8]}
38. Ke2 {[%clk 0:01:12.1]} 38... Nf7 {[%clk 0:01:16]} 39. Nd3 {[%clk 0:01:10.9]}
39... Kd6 {[%clk 0:01:11.3]} 40. Kd2 {[%clk 0:01:09.7]} 40... e5 {[%clk
0:01:09.7]} 41. f4 {[%clk 0:01:08.4]} 41... exd4 {[%clk 0:01:08.8]} 42. exd4
{[%clk 0:01:07.3]} 42... Nd8 {[%clk 0:01:09.5]} 43. Rc2 {[%clk 0:00:54.8]} 43...
Rxb3 {[%clk 0:00:40.9]} 44. Ne5 {[%clk 0:00:51.5]} 44... Rxg3 {[%clk 0:00:33.2]}
45. Rc8 {[%clk 0:00:48.9]} 45... Ne6 {[%clk 0:00:33.6]} 46. Rc6+ {[%clk
0:00:42]} 46... Ke7 {[%clk 0:00:33.9]} 47. Ra6 {[%clk 0:00:38.4]} 47... Nxd4
{[%clk 0:00:29.4]} 48. Ra7+ {[%clk 0:00:37.5]} 48... Kd6 {[%clk 0:00:28.7]} 49.
Ra6+ {[%clk 0:00:36.8]} 49... Kc7 {[%clk 0:00:28.8]} 50. Rxa5 {[%clk 0:00:34.1]}
50... Nb3+ {[%clk 0:00:28.7]} 0-1

[Event "*** Titled Tuesday Blitz"]
[Site "Chess.com"]
[Date "2020.04.28"]
[Round "8"]
[White "Spartakus1975"]
[Black "RaunakSadhwani2005"]
[Result "1-0"]
[WhiteElo "2782"]
[BlackElo "2880"]
[TimeControl "180+1"]
[EndTime "11:36:10 PDT"]
[Termination "Spartakus1975 won by checkmate"]

1. e4 {[%clk 0:03:00]} 1... Nf6 {[%clk 0:02:56.6]} 2. e5 {[%clk 0:02:59.6]} 2...
Nd5 {[%clk 0:02:56.8]} 3. d4 {[%clk 0:03:00.3]} 3... d6 {[%clk 0:02:56.6]} 4.
Bc4 {[%clk 0:03:00.9]} 4... Nb6 {[%clk 0:02:53.9]} 5. Bb3 {[%clk 0:03:00.6]}
5... dxe5 {[%clk 0:02:53.5]} 6. Qh5 {[%clk 0:03:00]} 6... e6 {[%clk 0:02:35.7]}
7. dxe5 {[%clk 0:02:59.7]} 7... c5 {[%clk 0:02:35.3]} 8. Na3 {[%clk 0:02:57.1]}
8... Nc6 {[%clk 0:02:31.7]} 9. Nf3 {[%clk 0:02:53.7]} 9... Na5 {[%clk
0:02:25.8]} 10. Bg5 {[%clk 0:02:46.2]} 10... Qc7 {[%clk 0:02:11.3]} 11. Nb5
{[%clk 0:02:19.7]} 11... Qc6 {[%clk 0:01:59.1]} 12. O-O-O {[%clk 0:02:18.5]}
12... Bd7 {[%clk 0:01:57.4]} 13. Nd6+ {[%clk 0:02:08.2]} 13... Bxd6 {[%clk
0:01:56]} 14. Rxd6 {[%clk 0:02:08.1]} 14... Qe4 {[%clk 0:01:43.1]} 15. Bxe6
{[%clk 0:01:54.2]} 15... Bxe6 {[%clk 0:00:52.7]} 16. Rxe6+ {[%clk 0:01:51.4]}
16... Kf8 {[%clk 0:00:53.2]} 17. Re7 {[%clk 0:01:29.9]} 17... Qg6 {[%clk
0:00:53]} 18. Qxg6 {[%clk 0:01:23.3]} 18... hxg6 {[%clk 0:00:49.4]} 19. Rd1
{[%clk 0:01:17.5]} 19... Kg8 {[%clk 0:00:42.4]} 20. Rc7 {[%clk 0:00:55.8]} 20...
Re8 {[%clk 0:00:41.5]} 21. Be7 {[%clk 0:00:43.2]} 21... Na8 {[%clk 0:00:19.3]}
22. Rxc5 {[%clk 0:00:37.6]} 22... b6 {[%clk 0:00:18.2]} 23. Rcd5 {[%clk
0:00:29.3]} 23... Nc6 {[%clk 0:00:16]} 24. Bd6 {[%clk 0:00:27.3]} 24... f6
{[%clk 0:00:16.4]} 25. h3 {[%clk 0:00:24.6]} 25... Kf7 {[%clk 0:00:16.3]} 26. a3
{[%clk 0:00:20.3]} 26... Rc8 {[%clk 0:00:16.6]} 27. c3 {[%clk 0:00:18.7]} 27...
Rhe8 {[%clk 0:00:16.6]} 28. Kb1 {[%clk 0:00:17.3]} 28... Ke6 {[%clk 0:00:14.8]}
29. exf6 {[%clk 0:00:16.3]} 29... gxf6 {[%clk 0:00:15.7]} 30. Bg3 {[%clk
0:00:16.5]} 30... Re7 {[%clk 0:00:15.4]} 31. Rd6+ {[%clk 0:00:15.9]} 31... Kf7
{[%clk 0:00:15.7]} 32. Nd4 {[%clk 0:00:13.1]} 32... Na5 {[%clk 0:00:14.7]} 33.
Bh4 {[%clk 0:00:11.2]} 33... g5 {[%clk 0:00:14.7]} 34. Bg3 {[%clk 0:00:11.5]}
34... Nc4 {[%clk 0:00:15.2]} 35. Nf5 {[%clk 0:00:11.4]} 35... Re2 {[%clk
0:00:13.8]} 36. Rd7+ {[%clk 0:00:11.2]} 36... Kg6 {[%clk 0:00:14]} 37. Ne7+
{[%clk 0:00:11.4]} 37... Kh5 {[%clk 0:00:14.4]} 38. Nxc8 {[%clk 0:00:11.1]}
38... Rxb2+ {[%clk 0:00:14]} 39. Kc1 {[%clk 0:00:11.7]} 39... Ra2 {[%clk
0:00:14]} 40. R1d4 {[%clk 0:00:10.4]} 40... Nxa3 {[%clk 0:00:14.1]} 41. Rf7
{[%clk 0:00:08.1]} 41... Kg6 {[%clk 0:00:13.9]} 42. Rdd7 {[%clk 0:00:06.5]}
42... b5 {[%clk 0:00:13.4]} 43. Nd6 {[%clk 0:00:06.5]} 43... Rc2+ {[%clk
0:00:09.5]} 44. Kd1 {[%clk 0:00:05.9]} 44... Nb6 {[%clk 0:00:10.4]} 45. Rg7+
{[%clk 0:00:05.8]} 45... Kh5 {[%clk 0:00:11.3]} 46. Rh7+ {[%clk 0:00:06]} 46...
Kg6 {[%clk 0:00:12.2]} 47. Rdg7# {[%clk 0:00:06.3]} 1-0

[Event "*** Titled Tuesday Blitz"]
[Site "Chess.com"]
[Date "2020.04.28"]
[Round "8"]
[White "pooh2012"]
[Black "Danfii"]
[Result "0-1"]
[WhiteElo "2484"]
[BlackElo "2344"]
[TimeControl "180+1"]
[EndTime "11:36:11 PDT"]
[Termination "Danfii won by resignation"]

1. e4 {[%clk 0:03:00.9]} 1... e5 {[%clk 0:02:59.7]} 2. Nf3 {[%clk 0:02:58.7]}
2... Nc6 {[%clk 0:02:59.6]} 3. Bc4 {[%clk 0:02:58.2]} 3... Bc5 {[%clk
0:02:59.2]} 4. O-O {[%clk 0:02:57.2]} 4... Nf6 {[%clk 0:02:58.5]} 5. d3 {[%clk
0:02:57.2]} 5... d6 {[%clk 0:02:58.5]} 6. Bg5 {[%clk 0:02:52.8]} 6... h6 {[%clk
0:02:55.6]} 7. Bh4 {[%clk 0:02:52.8]} 7... a6 {[%clk 0:02:53.5]} 8. a4 {[%clk
0:02:48.3]} 8... g5 {[%clk 0:02:51]} 9. Bg3 {[%clk 0:02:46.8]} 9... Bg4 {[%clk
0:02:46.5]} 10. c3 {[%clk 0:02:40.5]} 10... Qd7 {[%clk 0:02:44.9]} 11. Nbd2
{[%clk 0:02:27.7]} 11... h5 {[%clk 0:02:22.8]} 12. b4 {[%clk 0:02:22.8]} 12...
Ba7 {[%clk 0:02:20.8]} 13. h4 {[%clk 0:01:54.4]} 13... gxh4 {[%clk 0:02:06.7]}
14. Bxh4 {[%clk 0:01:55.3]} 14... Nh7 {[%clk 0:02:04.9]} 15. b5 {[%clk
0:01:44.1]} 15... Ne7 {[%clk 0:01:53.4]} 16. bxa6 {[%clk 0:01:40.7]} 16... bxa6
{[%clk 0:01:53.3]} 17. Bxa6 {[%clk 0:01:31.4]} 17... Ng6 {[%clk 0:01:53.2]} 18.
Qb3 {[%clk 0:01:23.4]} 18... Rb8 {[%clk 0:01:47.2]} 19. Qc4 {[%clk 0:00:54.1]}
19... Nxh4 {[%clk 0:01:34.6]} 20. Nxh4 {[%clk 0:00:43.2]} 20... O-O {[%clk
0:01:25.3]} 21. Bb5 {[%clk 0:00:39.1]} 21... Qe7 {[%clk 0:01:25.3]} 22. Nhf3
{[%clk 0:00:35.9]} 22... Kh8 {[%clk 0:01:23.9]} 23. d4 {[%clk 0:00:35.1]} 23...
Rg8 {[%clk 0:01:22.4]} 24. Kh2 {[%clk 0:00:27]} 24... Ng5 {[%clk 0:01:08.9]} 25.
Ng1 {[%clk 0:00:09.6]} 25... Ne6 {[%clk 0:01:02.5]} 26. g3 {[%clk 0:00:06.6]}
26... exd4 {[%clk 0:00:56]} 27. f4 {[%clk 0:00:06.7]} 27... h4 {[%clk
0:00:50.5]} 28. Qd3 {[%clk 0:00:06.2]} 28... hxg3+ {[%clk 0:00:49.3]} 29. Qxg3
{[%clk 0:00:06.2]} 29... Rg7 {[%clk 0:00:45.9]} 30. f5 {[%clk 0:00:05.9]} 30...
Rh7+ {[%clk 0:00:43.2]} 31. Kg2 {[%clk 0:00:05.5]} 31... Rg8 {[%clk 0:00:39.1]}
32. fxe6 {[%clk 0:00:04]} 32... Bh3+ {[%clk 0:00:38.8]} 33. Nxh3 {[%clk
0:00:03.4]} 33... Rxg3+ {[%clk 0:00:38.3]} 34. Kxg3 {[%clk 0:00:04.3]} 34...
Qh4+ {[%clk 0:00:38.4]} 35. Kf3 {[%clk 0:00:03.5]} 35... Qxh3+ {[%clk
0:00:38.6]} 36. Ke2 {[%clk 0:00:04.1]} 36... Qe3+ {[%clk 0:00:31.2]} 37. Kd1
{[%clk 0:00:03.8]} 37... dxc3 {[%clk 0:00:31.6]} 38. Nf3 {[%clk 0:00:01.7]}
38... fxe6 {[%clk 0:00:27.8]} 39. Kc2 {[%clk 0:00:02.2]} 39... c5 {[%clk
0:00:19.1]} 40. Bd3 {[%clk 0:00:02.3]} 40... c4 {[%clk 0:00:19.1]} 41. Bxc4
{[%clk 0:00:02.5]} 41... Rh3 {[%clk 0:00:18.6]} 42. Bd3 {[%clk 0:00:03.4]} 42...
Rxf3 {[%clk 0:00:18]} 43. Rh1+ {[%clk 0:00:03.1]} 43... Rh3 {[%clk 0:00:18.2]}
44. Rag1 {[%clk 0:00:03.8]} 44... Rxh1 {[%clk 0:00:18]} 45. Rxh1+ {[%clk
0:00:04.7]} 45... Kg7 {[%clk 0:00:18.6]} 46. Rf1 {[%clk 0:00:05.3]} 46... e5
{[%clk 0:00:17.3]} 47. Rd1 {[%clk 0:00:05.2]} 47... Bd4 {[%clk 0:00:17.4]} 48.
Kb3 {[%clk 0:00:05.3]} 48... Qf2 {[%clk 0:00:16.3]} 49. Kc4 {[%clk 0:00:05.4]}
49... Qb2 {[%clk 0:00:16.3]} 50. Rf1 {[%clk 0:00:05.4]} 50... Qa2+ {[%clk
0:00:16.4]} 51. Kb5 {[%clk 0:00:05.3]} 51... c2 {[%clk 0:00:16.6]} 52. Kc6
{[%clk 0:00:05.3]} 52... Qb2 {[%clk 0:00:16.7]} 53. Bxc2 {[%clk 0:00:05.2]}
53... Qxc2+ {[%clk 0:00:16.9]} 54. Kd5 {[%clk 0:00:06.1]} 54... Qb3+ {[%clk
0:00:16.6]} 55. Kxd6 {[%clk 0:00:06.1]} 55... Qb4+ {[%clk 0:00:16.7]} 56. Ke6
{[%clk 0:00:06.5]} 56... Qc4+ {[%clk 0:00:16.9]} 57. Kd6 {[%clk 0:00:07.1]}
57... Qxf1 {[%clk 0:00:17.8]} 0-1